fUST/lending_fUST_20241217
["ID","MTS","AMOUNT","RATE_DAILY","PERIOD"]
[345624220,1734395342410,-153.0,0.00025495,3]
[345624221,1734395342432,-153.0,0.00025495,3]
[345624222,1734395342454,-153.0,0.00025495,3]
[345624223,1734395342475,-153.0,0.00025495,3]
[345624224,1734395342497,-153.0,0.00025495,3]
[345624225,1734395342519,-153.0,0.00025495,3]
[345624226,1734395342543,-153.0,0.00025495,3]
[345624227,1734395342567,-153.0,0.00025495,3]
[345624228,1734395342591,-153.0,0.00025495,3]
[345624229,1734395342613,-153.0,0.00025495,3]
[345624230,1734395342635,-153.0,0.00025495,3]
[345624231,1734395342668,-153.0,0.00025495,3]
[345624232,1734395342690,-153.0,0.00025495,3]
[345624233,1734395342714,-153.0,0.00025495,3]
[345624234,1734395342735,-153.0,0.00025495,3]
[345624235,1734395342759,-228.25,0.00025495,3]
[345624236,1734395342781,-153.0,0.000255,2]
[345624237,1734395342802,-7593.01509558,0.00025539,2]
[345624238,1734395342825,-151.0,0.000256,16]
[345624239,1734395342847,-151.0,0.000257,20]
[345624240,1734395342869,-161.6490593,0.0002574,4]
[345624241,1734395342891,-400.0,0.00025753,2]
[345624242,1734395342917,-151.0,0.000258,16]
[345624243,1734395342939,-151.0,0.000258,14]
[345624244,1734395342961,-164.0,0.0002589,2]
[345624245,1734395342983,-151.0,0.000259,17]
[345624246,1734395343004,-745.37106473,0.000259,2]
[345624247,1734395343029,-564.66330387,0.000259,3]
[345624248,1734395343053,-244.70279626,0.000259,2]
[345624263,1734395382784,5842.65065982,0.00025559,60]
[345624268,1734395408739,29201.5430814,0.00025559,120]
[345624321,1734395432673,-3598.55849492,0.0002588,2]
[345624323,1734395432683,-1190.40516702,0.00025899,2]
[345624325,1734395432693,-546.39647336,0.000259,2]
[345624327,1734395432703,-300.0,0.00025972,2]
[345624329,1734395432712,-300.0,0.00025972,2]
[345624330,1734395432725,-500.0,0.00025973,2]
[345624332,1734395432736,-500.29321698,0.00025973,2]
[345624334,1734395432746,-500.0,0.00025973,2]
[345624336,1734395432756,-474.37819365,0.00025973,2]
[345624338,1734395432769,-500.0,0.00025973,2]
[345624340,1734395432779,-518.7032219,0.00025973,2]
[345624342,1734395432789,-419.9192378,0.00025973,2]
[345624344,1734395432799,-500.0,0.00025973,2]
[345624346,1734395432810,-329.75118036,0.00025973,2]
[345624348,1734395432820,-500.0,0.00025973,2]
[345624350,1734395432831,-502.67658723,0.00025973,2]
[345624352,1734395432841,-220.12877861,0.00025973,2]
[345624354,1734395432851,-174.39927694,0.00025973,2]
[345624355,1734395432861,-500.0,0.00025973,2]
[345624357,1734395432870,-500.0,0.00025973,2]
[345624359,1734395432880,-151.0,0.00025999,7]
[345624362,1734395432890,-151.0,0.00025999,7]
[345624364,1734395432899,-185.18736048,0.00025999,2]
[345624366,1734395432909,-464.3132235,0.00025999,2]
[345624367,1734395432918,-500.0,0.00025999,2]
[345624369,1734395432928,-204.9184094,0.00025999,2]
[345624371,1734395432937,-500.0,0.00025999,2]
[345624373,1734395432947,-500.0,0.00025999,2]
[345624375,1734395432956,-500.0,0.00025999,2]
[345624377,1734395432965,-500.0,0.00025999,2]
[345624379,1734395432987,-531.31652111,0.00025999,2]
[345624381,1734395432997,-61.21595924,0.00025999,2]
[345624383,1734395433009,-472.89841708,0.00025999,2]
[345624384,1734395433019,-500.0,0.00025999,2]
[345624386,1734395433030,-500.0,0.00025999,2]
[345624388,1734395433041,-190.768745,0.00025999,2]
[345624389,1734395433051,-500.0,0.00025999,2]
[345624390,1734395433062,-531.31652111,0.00025999,2]
[345624391,1734395433072,-500.0,0.00025999,2]
[345624392,1734395433083,-500.0,0.00025999,2]
[345624393,1734395433093,-603.62724184,0.00025999,2]
[345624394,1734395433103,-453.38907506,0.00025999,2]
[345624395,1734395433117,-46.61092494,0.00025999,2]
[345624396,1734395433127,-531.31652111,0.00025999,2]
[345624397,1734395433137,-194.35392814,0.00025999,2]
[345624398,1734395433147,-500.0,0.00025999,2]
[345624399,1734395433157,-308.43927591,0.00025999,2]
[345624491,1734395439641,-191.56072409,0.00025999,2]
[345624493,1734395439651,-531.31652111,0.00025999,2]
[345624495,1734395439661,-500.0,0.00025999,2]
[345624497,1734395439671,-500.0,0.00025999,2]
[345624499,1734395439680,-531.31652111,0.00025999,2]
[345624501,1734395439690,-500.0,0.00025999,2]
[345624503,1734395439699,-500.0,0.00025999,2]
[345624505,1734395439709,-500.0,0.00025999,2]
[345624507,1734395439718,-500.0,0.00025999,2]
[345624509,1734395439734,-531.31652111,0.00025999,2]
[345624511,1734395439744,-214.48971258,0.00025999,2]
[345624513,1734395439756,-285.51028742,0.00025999,2]
[345624515,1734395439769,-470.55485188,0.00025999,2]
[345624517,1734395439780,-531.31652111,0.00025999,2]
[345624519,1734395439790,-500.0,0.00025999,2]
[345624521,1734395439800,-39.23599498,0.00025999,2]
[345624524,1734395439813,-492.08052613,0.00025999,2]
[345624526,1734395439823,-500.0,0.00025999,2]
[345624528,1734395439832,-531.31652111,0.00025999,2]
[345624530,1734395439842,-500.0,0.00025999,2]
[345624532,1734395439852,-531.31652111,0.00025999,2]
[345624534,1734395439862,-500.0,0.00025999,2]
[345624536,1734395439871,-500.0,0.00025999,2]
[345624538,1734395439881,-500.0,0.00025999,2]
[345624540,1734395439891,-531.31652111,0.00025999,2]
[345624542,1734395439901,-500.0,0.00025999,2]
[345624544,1734395439911,-500.0,0.00025999,2]
[345624546,1734395439921,-531.31652111,0.00025999,2]
[345624548,1734395439930,-500.0,0.00025999,2]
[345624550,1734395439939,-500.0,0.00025999,2]
[345624552,1734395439949,-531.31652111,0.00025999,2]
[345624554,1734395439958,-500.0,0.00025999,2]
[345624556,1734395439968,-500.0,0.00025999,2]
[345624558,1734395439983,-500.0,0.00025999,2]
[345624560,1734395439992,-531.31652111,0.00025999,2]
[345624562,1734395440002,-500.0,0.00025999,2]
[345624564,1734395440011,-500.0,0.00025999,2]
[345624566,1734395440020,-531.31652111,0.00025999,2]
[345624569,1734395440029,-500.0,0.00025999,2]
[345624571,1734395440038,-500.0,0.00025999,2]
[345624573,1734395440047,-500.0,0.00025999,2]
[345624575,1734395440056,-500.0,0.00025999,2]
[345624577,1734395440065,-500.0,0.00025999,2]
[345624579,1734395440075,-500.0,0.00025999,2]
[345624581,1734395440084,-531.31652111,0.00025999,2]
[345624583,1734395440093,-500.0,0.00025999,2]
[345624585,1734395440103,-500.0,0.00025999,2]
[345624587,1734395440112,-500.0,0.00025999,2]
[345624589,1734395440121,-531.31652111,0.00025999,2]
[345624591,1734395440131,-500.0,0.00025999,2]
[345624593,1734395440140,-500.0,0.00025999,2]
[345624596,1734395440149,-531.31652111,0.00025999,2]
[345624598,1734395440159,-500.0,0.00025999,2]
[345624600,1734395440168,-531.31652111,0.00025999,2]
[345624602,1734395440178,-167.98578543,0.00025999,2]
[345624604,1734395440187,-500.0,0.00025999,2]
[345624606,1734395440198,-500.0,0.00025999,2]
[345624608,1734395440207,-531.31652111,0.00025999,2]
[345624610,1734395440217,-500.0,0.00025999,2]
[345624612,1734395440231,-531.31652111,0.00025999,2]
[345624614,1734395440239,-500.0,0.00025999,2]
[345624616,1734395440249,-531.31652111,0.00025999,2]
[345624618,1734395440258,-500.0,0.00025999,2]
[345624620,1734395440267,-531.31652111,0.00025999,2]
[345624622,1734395440276,-500.0,0.00025999,2]
[345624624,1734395440285,-500.0,0.00025999,2]
[345624626,1734395440294,-531.31652111,0.00025999,2]
[345624628,1734395440303,-500.0,0.00025999,2]
[345624630,1734395440313,-531.31652111,0.00025999,2]
[345624632,1734395440323,-500.0,0.00025999,2]
[345624634,1734395440332,-531.31652111,0.00025999,2]
[345624636,1734395440343,-500.0,0.00025999,2]
[345624638,1734395440352,-531.31652111,0.00025999,2]
[345624640,1734395440361,-500.0,0.00025999,2]
[345624642,1734395440371,-500.0,0.00025999,2]
[345624644,1734395440380,-531.31652111,0.00025999,2]
[345624646,1734395440389,-500.0,0.00025999,2]
[345624648,1734395440399,-500.0,0.00025999,2]
[345624650,1734395440408,-531.31652111,0.00025999,2]
[345624652,1734395440417,-531.31652111,0.00025999,2]
[345624654,1734395440426,-531.31652111,0.00025999,2]
[345624656,1734395440436,-531.31652111,0.00025999,2]
[345624658,1734395440445,-500.0,0.00025999,2]
[345624660,1734395440454,-531.31652111,0.00025999,2]
[345624662,1734395440464,-500.0,0.00025999,2]
[345624664,1734395440478,-531.31652111,0.00025999,2]
[345624667,1734395440488,-531.31652111,0.00025999,2]
[345624669,1734395440498,-500.0,0.00025999,2]
[345624671,1734395440508,-531.31652111,0.00025999,2]
[345624673,1734395440517,-531.31652111,0.00025999,2]
[345624675,1734395440526,-531.31652111,0.00025999,2]
[345624677,1734395440535,-531.31652111,0.00025999,2]
[345624679,1734395440545,-531.31652111,0.00025999,2]
[345624681,1734395440554,-531.31652111,0.00025999,2]
[345624683,1734395440564,-531.31652111,0.00025999,2]
[345624685,1734395440573,-531.31652111,0.00025999,2]
[345624687,1734395440583,-531.31652111,0.00025999,2]
[345624689,1734395440592,-531.31652111,0.00025999,2]
[345624691,1734395440602,-531.31652111,0.00025999,2]
[345624693,1734395440613,-531.31652111,0.00025999,2]
[345624695,1734395440622,-531.31652111,0.00025999,2]
[345624697,1734395440631,-531.31652111,0.00025999,2]
[345624699,1734395440641,-531.31652111,0.00025999,2]
[345624701,1734395440651,-531.31652111,0.00025999,2]
[345624703,1734395440660,-531.31652111,0.00025999,2]
[345624705,1734395440670,-531.31652111,0.00025999,2]
[345624707,1734395440680,-531.31652111,0.00025999,2]
[345624709,1734395440689,-500.0,0.00025999,2]
[345624712,1734395440699,-500.0,0.00025999,2]
[345624714,1734395440708,-500.0,0.00025999,2]
[345624716,1734395440717,-416.79857854,0.00025999,2]
[345624718,1734395440731,-655.19548545,0.00025999,2]
[345624720,1734395440740,-655.19548545,0.00025999,2]
[345624722,1734395440749,-655.19548545,0.00025999,2]
[345624724,1734395440759,-655.19548545,0.00025999,2]
[345624726,1734395440772,-655.19548545,0.00025999,2]
[345624728,1734395440781,-655.19548545,0.00025999,2]
[345624729,1734395440790,-655.19548545,0.00025999,2]
[345624731,1734395440799,-655.19548545,0.00025999,2]
[345624734,1734395440808,-655.19548545,0.00025999,2]
[345624736,1734395440818,-655.19548545,0.00025999,2]
[345624738,1734395440827,-655.19548545,0.00025999,2]
[345624740,1734395440836,-655.19548545,0.00025999,2]
[345624742,1734395440845,-655.19548545,0.00025999,2]
[345624744,1734395440854,-655.19548545,0.00025999,2]
[345624746,1734395440863,-500.0,0.00025999,2]
[345624748,1734395440872,-655.19548545,0.00025999,2]
[345624750,1734395440882,-500.0,0.00025999,2]
[345624752,1734395440891,-655.19548545,0.00025999,2]
[345624754,1734395440901,-500.0,0.00025999,2]
[345624756,1734395440910,-655.19548545,0.00025999,2]
[345624758,1734395440919,-655.19548545,0.00025999,2]
[345624760,1734395440929,-500.0,0.00025999,2]
[345624762,1734395440938,-655.19548545,0.00025999,2]
[345624764,1734395440947,-500.0,0.00025999,2]
[345624766,1734395440957,-655.19548545,0.00025999,2]
[345624768,1734395440967,-655.19548545,0.00025999,2]
[345624770,1734395440981,-500.0,0.00025999,2]
[345624772,1734395440992,-655.19548545,0.00025999,2]
[345624774,1734395441001,-500.0,0.00025999,2]
[345624798,1734395441011,-655.19548545,0.00025999,2]
[345624800,1734395441229,-655.19548545,0.00025999,2]
[345624802,1734395441240,-500.0,0.00025999,2]
[345624804,1734395441249,-655.19548545,0.00025999,2]
[345624806,1734395441259,-581.72831687,0.00025999,2]
[345624809,1734395441269,-655.19548545,0.00025999,2]
[345624811,1734395441279,-655.19548545,0.00025999,2]
[345624813,1734395441288,-500.0,0.00025999,2]
[345624815,1734395441298,-655.19548545,0.00025999,2]
[345624817,1734395441307,-655.19548545,0.00025999,2]
[345624819,1734395441317,-500.0,0.00025999,2]
[345624821,1734395441326,-500.0,0.00025999,2]
[345624823,1734395441335,-655.19548545,0.00025999,2]
[345624825,1734395441344,-655.19548545,0.00025999,2]
[345624827,1734395441353,-500.0,0.00025999,2]
[345624829,1734395441362,-655.19548545,0.00025999,2]
[345624831,1734395441371,-655.19548545,0.00025999,2]
[345624833,1734395441380,-655.1954855,0.00025999,2]
[345624835,1734395441390,-655.19548549,0.00025999,2]
[345624837,1734395441400,-319407.61558463,0.00025999,5]
[345625068,1734395443622,-10596.99998,0.00025999,5]
[345625249,1734395447274,-0.02688941,0.0002568,15]
[345625250,1734395475718,163.733847,0.00013973,2]
[345625261,1734396395699,163.928841,0.00013973,2]
[345625262,1734396424977,400.0,0.0002,2]
[345625380,1734396632311,-4357.19891326,0.00020713,2]
[345625383,1734396632322,-1845.04423703,0.00022,2]
[345625385,1734396632332,-168.0,0.00022,2]
[345625387,1734396632341,-160.0,0.00022647,3]
[345625389,1734396632353,-160.0,0.00023098,4]
[345625391,1734396632363,-160.0,0.00023549,5]
[345625393,1734396632373,-160.0,0.00024,6]
[345625395,1734396632385,-162.22735869,0.00024,5]
[345625397,1734396632394,-1257.8244138,0.00024085,2]
[345625399,1734396632404,-177.221615,0.00024246,2]
[345625401,1734396632414,-425.591258,0.00024271,2]
[345625403,1734396632423,-300.0,0.00024471,2]
[345625404,1734396632433,-24900.0,0.00024472,2]
[345625407,1734396632442,-1441.69431851,0.000246,2]
[345625409,1734396632452,-581.601,0.000247,2]
[345625411,1734396632464,-250.0,0.00024713,2]
[345625412,1734396632474,-195.84984155,0.00024853,2]
[345625413,1734396632483,-847.97529347,0.00024853,2]
[345625414,1734396632493,-145.52706065,0.00025,7]
[345625415,1734396632506,-254.47293935,0.00025,7]
[345625416,1734396632515,-155.4710044,0.00025041,2]
[345625417,1734396632524,-1441.69431844,0.00025064,2]
[345625418,1734396632534,-300.0,0.00025499,2]
[345625419,1734396632543,-1441.69431844,0.00025527,2]
[345625420,1734396632552,-400.0,0.000256,6]
[345625421,1734396632562,-400.0,0.000256,8]
[345625422,1734396632571,-316.50480597,0.00025638,2]
[345625423,1734396632581,-1000.0,0.00025693,2]
[345625424,1734396632594,-1000.0,0.00025699,2]
[345625425,1734396632606,-1000.0,0.000257,2]
[345625427,1734396632616,-400.0,0.00025753,2]
[345625429,1734396632625,-1000.0,0.00025804,2]
[345625431,1734396632634,-170.9141674,0.00025899,2]
[345625433,1734396632644,-4235.76999521,0.000259,2]
[345625435,1734396632653,-153.0,0.00025945,2]
[345625437,1734396632662,-153.0,0.00025945,2]
[345625439,1734396632672,-153.0,0.00025945,2]
[345625442,1734396632681,-31550.99955095,0.0002597,7]
[345625444,1734396632693,-1429.32246378,0.0002597,7]
[345625973,1734396638539,-87078.60545083,0.0002597,7]
[345625974,1734396638549,-203.02234044,0.00025973,2]
[345625975,1734396638559,-500.0,0.00025973,2]
[345625976,1734396638569,-501.36073576,0.00025973,2]
[345625977,1734396638578,-204.34492543,0.00025973,2]
[345625978,1734396638588,-500.0,0.00025973,2]
[345625979,1734396638597,-1441.69431844,0.00025991,2]
[345625980,1734396638608,-500.0,0.00025998,2]
[345625981,1734396638618,-500.0,0.00025998,2]
[345625982,1734396638628,-500.0,0.00025998,2]
[345625983,1734396638638,-500.0,0.00025998,2]
[345625984,1734396638648,-500.0,0.00025998,2]
[345625985,1734396638658,-500.0,0.00025998,2]
[345625986,1734396638667,-500.0,0.00025998,2]
[345625987,1734396638677,-320.15338407,0.00025998,2]
[345625988,1734396638687,-500.0,0.00025998,2]
[345625989,1734396638697,-500.0,0.00025998,2]
[345625990,1734396638707,-500.0,0.00025998,2]
[345625991,1734396638717,-500.0,0.00025998,2]
[345625992,1734396638727,-500.0,0.00025998,2]
[345625993,1734396638737,-500.0,0.00025998,2]
[345625994,1734396638746,-500.0,0.00025998,2]
[345625996,1734396638756,-500.0,0.00025998,2]
[345625998,1734396638766,-500.0,0.00025998,2]
[345626000,1734396638775,-500.0,0.00025998,2]
[345626002,1734396638786,-270.8867071,0.00025998,2]
[345626004,1734396638796,-500.0,0.00025998,2]
[345626006,1734396638806,-500.0,0.00025998,2]
[345626008,1734396638816,-500.0,0.00025998,2]
[345626010,1734396638826,-500.0,0.00025998,2]
[345626012,1734396638835,-500.0,0.00025998,2]
[345626014,1734396638845,-353.54693961,0.00025998,2]
[345626016,1734396638855,-500.0,0.00025998,2]
[345626018,1734396638871,-500.0,0.00025998,2]
[345626020,1734396638881,-500.0,0.00025998,2]
[345626022,1734396638891,-500.0,0.00025998,2]
[345626024,1734396638900,-500.0,0.00025998,2]
[345626026,1734396638909,-500.0,0.00025998,2]
[345626028,1734396638919,-500.0,0.00025998,2]
[345626030,1734396638928,-500.0,0.00025998,2]
[345626032,1734396638938,-500.0,0.00025998,2]
[345626034,1734396638948,-500.0,0.00025998,2]
[345626036,1734396638957,-500.0,0.00025998,2]
[345626038,1734396638967,-500.0,0.00025998,2]
[345626040,1734396638976,-500.0,0.00025998,2]
[345626042,1734396638986,-500.0,0.00025998,2]
[345626044,1734396638995,-500.0,0.00025998,2]
[345626046,1734396639005,-500.0,0.00025998,2]
[345626048,1734396639015,-500.0,0.00025998,2]
[345626050,1734396639025,-500.0,0.00025998,2]
[345626052,1734396639035,-500.0,0.00025998,2]
[345626054,1734396639045,-500.0,0.00025998,2]
[345626056,1734396639054,-500.0,0.00025998,2]
[345626058,1734396639064,-500.0,0.00025998,2]
[345626060,1734396639074,-500.0,0.00025998,2]
[345626062,1734396639085,-500.0,0.00025998,2]
[345626064,1734396639094,-488.13317572,0.00025998,2]
[345626066,1734396639104,-500.0,0.00025998,2]
[345626068,1734396639117,-500.0,0.00025998,2]
[345626070,1734396639126,-500.0,0.00025998,2]
[345626072,1734396639137,-500.0,0.00025998,2]
[345626074,1734396639147,-500.0,0.00025998,2]
[345626076,1734396639157,-500.0,0.00025998,2]
[345626078,1734396639167,-500.0,0.00025998,2]
[345626080,1734396639177,-422.53972666,0.00025998,2]
[345626082,1734396639187,-500.0,0.00025998,2]
[345626084,1734396639197,-500.0,0.00025998,2]
[345626086,1734396639207,-500.0,0.00025998,2]
[345626088,1734396639218,-500.0,0.00025998,2]
[345626090,1734396639228,-500.0,0.00025998,2]
[345626092,1734396639238,-500.0,0.00025998,2]
[345626095,1734396639248,-500.0,0.00025998,2]
[345626097,1734396639258,-500.0,0.00025998,2]
[345626099,1734396639268,-500.0,0.00025998,2]
[345626101,1734396639277,-500.0,0.00025998,2]
[345626103,1734396639287,-500.0,0.00025998,2]
[345626105,1734396639296,-103440.82936341,0.00025999,2]
[345626107,1734396639306,-4378.66312773,0.00025999,2]
[345626109,1734396639316,-361246.2198073,0.00025999,5]
[345626111,1734396639328,-5753.85911781,0.00025999,5]
[345626114,1734396639349,-7498.01397883,0.00025999,5]
[345626125,1734396639439,-435.26761418,0.00020822,2]
[345626129,1734396639450,-37.73866945,0.00025999,5]
[345626131,1734396639463,-4822.96055039,0.00025999,5]
[345626164,1734396639791,-813.17957643,0.00025999,5]
[345626171,1734396639851,-497.2734232,0.00025999,5]
[345626174,1734396639866,-3290.01473372,0.00025999,5]
[345627114,1734397467230,164.13902,0.00013973,2]
[345627215,1734397836008,-280.0,0.00022,2]
[345627217,1734397836019,-261.20582799,0.00022,3]
[345627219,1734397836028,-91.46687572,0.00022,2]
[345627235,1734397836186,-59.53312428,0.00022,2]
[345627237,1734397836195,-175.297688,0.00022881,2]
[345627239,1734397836205,-716.002686,0.00022899,2]
[345627241,1734397836214,-151.0,0.00023014,2]
[345627243,1734397836224,-300.0,0.00023384,2]
[345627245,1734397836233,-7389.45304834,0.00023385,2]
[345627613,1734397840050,-250.39691976,0.00023385,2]
[345628706,1734398264054,997.0,0.0002023,2]
[345628707,1734398285437,2082.0,0.0002556,120]
[345628709,1734398375968,164.13902,0.00013973,2]
[345628768,1734399032565,-312.17817501,0.00021127,2]
[345628769,1734399032577,-1031.69627462,0.00021127,2]
[345628770,1734399032587,-4.92961032,0.00021185,2]
[345628807,1734399039129,-295.07038968,0.00021185,2]
[345628810,1734399039139,-300.0,0.00021185,2]
[345628812,1734399039149,-24900.0,0.00021186,2]
[345628814,1734399039160,-250.0,0.00021227,2]
[345628816,1734399039169,-678.232219,0.0002144,2]
[345628818,1734399039179,-229.0,0.00022,2]
[345628820,1734399039189,-1494.80283178,0.00022,2]
[345628822,1734399039199,-1343.87444962,0.00022087,2]
[345628824,1734399039209,-229.0,0.00022192,2]
[345628826,1734399039219,-320.27818371,0.00022466,6]
[345628828,1734399039229,-6270.53410906,0.0002283,2]
[345628830,1734399039240,-229.0,0.00023014,2]
[345628832,1734399039250,-420.0,0.00023041,2]
[345628834,1734399039260,-1343.87444962,0.00023046,2]
[345628836,1734399039270,-729.89639262,0.0002326,2]
[345628838,1734399039280,-6270.53410906,0.00023261,2]
[345628840,1734399039289,-420.0,0.00023304,2]
[345628842,1734399039299,-1343.87444962,0.00024006,2]
[345628844,1734399039313,-233.0,0.00024164,2]
[345628846,1734399039323,-177.1273356,0.0002422,2]
[345628848,1734399039334,-166.207,0.00024377,6]
[345628851,1734399039345,-200.0,0.00024658,15]
[345628853,1734399039357,-596.042,0.000247,2]
[345628855,1734399039366,-153.0,0.00024708,2]
[345628857,1734399039376,-83123.98646651,0.0002489,7]
[345628859,1734399039389,-4511.70728254,0.0002489,7]
[345630681,1734399459440,164.13902,0.00013973,2]
[345630689,1734399555156,1072.14879557,0.00025559,120]
[345630713,1734400087126,8133.39387373,0.00025559,120]
[345630750,1734400232735,-175.056892,0.00023435,2]
[345630752,1734400232746,-300.0,0.00023464,2]
[345630754,1734400232756,-300.0,0.00023464,2]
[345630756,1734400232765,-340.743787,0.00023527,2]
[345630759,1734400232778,-16224.7561629,0.00023802,2]
[345630762,1734400232787,-505.17471137,0.00023926,2]
[345631283,1734400240317,-151.0,0.000259,20]
[345631424,1734400241816,-3005.82528863,0.00023926,2]
[345631426,1734400241826,-161.10946522,0.00024,5]
[345631428,1734400241836,-165.37,0.00024374,6]
[345631431,1734400241848,-10141.02354827,0.00024423,2]
[345631433,1734400241858,-571.984,0.000247,2]
[345631435,1734400241868,-153.0,0.00024708,2]
[345631437,1734400241877,-358.2598494,0.0002474,2]
[345631439,1734400241886,-817.54006418,0.0002479,3]
[345631440,1734400241896,-3975.24818872,0.000248,2]
[345631443,1734400241906,-149703.58540938,0.0002489,2]
[345631884,1734400246797,-16965.53665866,0.00023899,2]
[345631885,1734400246807,-228.57807455,0.00024832,2]
[345631886,1734400246816,-2325.65313977,0.0002489,2]
[345631888,1734400359834,164.13902,0.00013973,2]
[345631891,1734400633813,2849.0,0.000259,20]
[345631892,1734400763541,175.0,0.0002,3]
[345631893,1734400763632,175.0,0.0002,3]
[345631933,1734401433089,-545.93894605,0.00022492,2]
[345631934,1734401433102,-606.84252089,0.00022492,2]
[345631995,1734401439685,-1312.84348675,0.00022492,2]
[345631997,1734401439696,-566.048,0.0002365,2]
[345631999,1734401439705,-213.9054965,0.0002372,2]
[345632001,1734401439715,-195.15037081,0.000238,2]
[345632704,1734401446936,-1804.84962919,0.000238,2]
[345632706,1734401446946,-170.371894,0.00023827,2]
[345632708,1734401446957,-916.8833619,0.00024641,2]
[345632710,1734401446966,-769.84114912,0.0002479,2]
[345632712,1734401446976,-182.86245964,0.00024793,2]
[345632714,1734401446986,-2000.0,0.000248,3]
[345632716,1734401446997,-155.94,0.000248,2]
[345632718,1734401447007,-2000.0,0.000248,4]
[345632719,1734401447017,-2000.0,0.000248,5]
[345632721,1734401447027,-2000.0,0.000248,6]
[345632723,1734401447036,-221.6344565,0.000248,2]
[345632724,1734401447046,-309.9925256,0.000248,2]
[345632726,1734401447055,-165.37108075,0.00024889,8]
[345632727,1734401447065,-94987.4325343,0.0002489,2]
[345632729,1734401447079,-126.07659626,0.0002489,2]
[345632731,1734401447088,-10514.92340374,0.0002489,2]
[345632732,1734401447100,-6894.00483922,0.0002489,2]
[345632734,1734401447110,-2330.97559899,0.0002489,7]
[345632736,1734401447122,-5601.96183571,0.0002489,7]
[345632738,1734401447134,-5114.54112279,0.0002489,7]
[345633669,1734401472530,164.13902,0.00013973,2]
[345633677,1734402371153,164.13902,0.00013973,2]
[345634507,1734402646082,-343.9912252,0.00022,2]
[345634510,1734402646092,-156.0,0.00022,2]
[345634512,1734402646102,-156.0,0.00022192,2]
[345634514,1734402646111,-151.284531,0.000225,2]
[345634515,1734402646121,-156.0,0.00023014,2]
[345634518,1734402646131,-170.3718947,0.00023246,2]
[345634519,1734402646140,-175.056892,0.00023439,2]
[345634521,1734402646150,-559.577,0.0002365,2]
[345634524,1734402646159,-809.03382319,0.0002416,2]
[345634526,1734402646169,-159.0,0.00024164,2]
[345634527,1734402646179,-375.30556356,0.00024641,2]
[345634530,1734402646191,-83.13611734,0.00024641,2]
[345634532,1734402646201,-395.6472365,0.0002474,2]
[345634534,1734402646211,-882.31586405,0.0002479,2]
[345634536,1734402646221,-182.86245964,0.0002479,2]
[345634537,1734402646230,-300.0,0.00024872,2]
[345634538,1734402646240,-300.0,0.00024872,2]
[345634539,1734402646250,-273.50711429,0.00024889,2]
[345634540,1734402646259,-47556.75456528,0.0002489,2]
[345634541,1734402646269,-8704.46412148,0.0002489,2]
[345634542,1734402646279,-133281.2441168,0.0002489,7]
[345637955,1734402699077,309.61,0.0002489,120]
[345638010,1734403340044,41613.566454,0.000202,4]
[345638011,1734403340073,54883.433546,0.000202,4]
[345638013,1734403477838,164.13902,0.00013973,2]
[345638118,1734403832321,-2000.0,0.00022,2]
[345638120,1734403832331,-156.0,0.00022,2]
[345638122,1734403832342,-2000.0,0.00023,2]
[345638124,1734403832352,-156.0,0.00023014,2]
[345638126,1734403832361,-175.056892,0.00023144,2]
[345638128,1734403832372,-536.529,0.0002365,2]
[345638130,1734403832382,-2000.0,0.00024,2]
[345638132,1734403832391,-156.0,0.00024164,2]